bitfinex/quotes_SOLUSD_20251013
["timestamp","ask_amount","ask_price","bid_price","bid_amount"]
[1760353653452,0.09832067,194.04,194.03,6.6453289]
[1760353653653,0.09832067,194.04,194.03,6.78010545]
[1760353653860,0.09832067,194.04,194.03,0.13477655]
[1760353654262,0.09832067,194.04,193.98,5.15517063]
[1760353654263,0.09832067,194.04,193.99,0.13477655]
[1760353654762,6.6453289,194.02,193.97,0.13494918]
[1760353654951,0.09832067,194.04,193.92,5.15676567]
[1760353654952,6.6453289,194.03,193.93,0.13502643]
[1760353655276,6.6453289,194.02,193.95,6.6453289]
[1760353655574,0.09832067,194.04,193.97,6.6453289]
[1760353655776,6.6453289,194.03,193.98,0.13495998]
[1760353656080,6.6453289,194.03,193.96,6.6453289]
[1760353656369,0.09686931,193.99,193.98,6.6453289]
[1760353656978,0.09686931,193.99,193.97,0.13504728]
[1760353657160,0.09686931,193.99,193.95,6.78044452]
[1760353657346,0.09686931,193.99,193.96,6.6453289]
[1760353657551,0.09686931,193.99,193.98,17.52180411]
[1760353657956,0.10241011,194.01,193.99,10.87647521]
[1760353658158,0.2,194.18,194.02,20.8]
[1760353658373,0.2,194.18,194.08,31.67647521]
[1760353658579,0.2,194.18,194.09,0.13414048]
[1760353658883,6.8453289,194.18,194.11,6.6453289]
[1760353659189,6.8453289,194.18,194.12,0.1340306]
[1760353659374,0.2,194.18,194.11,6.77936431]
[1760353659581,6.6453289,194.17,194.07,0.13403751]
[1760353659893,6.6453289,194.16,194.1,6.6453289]
[1760353660476,0.2,194.18,194.12,6.6453289]
[1760353660660,0.2,194.18,194.13,6.6453289]
[1760353661067,0.84373261,194.18,194.12,6.6453289]
[1760353661361,0.2,194.18,194.16,6.6453289]
[1760353661555,0.2,194.18,194.17,6.77917645]
[1760353661766,0.2,194.18,194.17,17.65565166]
[1760353662377,6.6453289,194.35,194.21,31.67647521]
[1760353662557,20.19999999,194.51,194.22,0.13321907]
[1760353662558,6.6453289,194.31,194.22,0.13321907]
[1760353662751,20.8,194.37,194.22,0.13321907]
[1760353663063,0.64313644,194.36,194.22,0.13321907]
[1760353663380,6.6453289,194.34,194.27,6.6453289]
[1760353663556,5.78738476,194.39,194.26,6.6453289]
[1760353663751,5.78738476,194.39,194.28,6.6453289]
[1760353663752,6.6453289,194.35,194.28,6.6453289]
[1760353663954,6.6453289,194.36,194.29,6.77829215]
[1760353664150,6.6453289,194.37,194.3,6.6453289]
[1760353664356,6.8453289,194.33,194.26,6.77829215]
[1760353664658,6.6453289,194.27,194.2,6.77839948]
[1760353665070,0.64326883,194.32,194.21,6.6453289]
[1760353665275,6.6453289,194.28,194.2,5.28233858]
[1760353665470,0.64326883,194.32,194.22,6.6453289]
[1760353665662,6.6453289,194.31,194.23,6.77856167]
[1760353665863,0.84323573,194.33,194.23,6.77856167]
[1760353665864,0.2,194.33,194.25,10.87647521]
[1760353666069,0.2,194.33,194.27,6.6453289]
[1760353666464,6.8453289,194.33,194.22,0.13307287]
[1760353666780,6.6453289,194.27,194.2,5.28245739]
[1760353666954,0.64326883,194.32,194.2,11.92778629]
[1760353667153,6.6453289,194.27,194.2,0.13318939]
[1760353667376,6.6453289,194.3,194.22,6.6453289]
[1760353667580,0.84323573,194.33,194.23,6.77862108]
[1760353667760,6.6453289,194.31,194.23,0.13329218]
[1760353667960,0.2,194.33,194.25,6.6453289]
[1760353668160,0.2,194.33,194.26,6.77840177]
[1760353668363,6.8453289,194.33,194.26,6.77840177]
[1760353668877,6.6453289,194.32,194.25,6.6453289]
[1760353669100,6.6453289,194.32,194.21,10.87647521]
[1760353669101,0.2,194.33,194.27,6.6453289]
[1760353669255,0.2,194.33,194.28,11.92530938]
[1760353669458,0.2,194.33,194.28,0.13299979]
[1760353669676,6.6453289,194.32,194.25,0.13299979]
[1760353669980,0.2,194.33,194.29,6.6453289]
[1760353670179,0.2,194.33,194.3,6.77825562]
[1760353670569,0.2,194.33,194.28,6.6453289]
[1760353670776,0.2,194.33,194.29,0.13297693]
[1760353670974,6.8453289,194.33,194.26,0.13297693]
[1760353671172,6.6453289,194.31,194.23,11.92665511]
[1760353671476,6.6453289,194.29,194.23,5.28132621]
[1760353671682,0.2,194.33,194.23,0.13304319]
[1760353671981,0.2,194.33,194.26,6.6453289]
[1760353672277,6.6453289,194.3,194.23,6.6453289]
[1760353672459,7.28869706,194.29,194.21,6.77838578]
[1760353672660,6.6453289,194.28,194.21,6.77838578]
[1760353672885,0.84323573,194.33,194.23,6.6453289]
[1760353673187,6.6453289,194.32,194.25,6.6453289]
[1760353673375,0.2,194.33,194.26,0.13310257]
[1760353673376,6.6453289,194.31,194.26,0.13310257]
[1760353673569,6.6453289,194.29,194.23,0.13310257]
[1760353673885,0.2,194.33,194.24,6.6453289]
[1760353674188,6.8453289,194.33,194.26,6.6453289]
[1760353674359,0.2,194.33,194.27,6.77836523]
[1760353674762,0.2,194.33,194.27,0.13303633]
[1760353674967,0.2,194.33,194.27,6.77836523]
[1760353675165,0.2,194.33,194.29,6.6453289]
[1760353675378,0.2,194.33,194.31,11.79174442]
[1760353675574,0.2,194.33,194.32,0.13285367]
[1760353676287,0.31221195,194.33,194.32,0.13285367]
[1760353676462,0.31221195,194.33,194.3,0.13285367]
[1760353676658,0.31221195,194.33,194.3,11.92475604]
[1760353677084,0.31221195,194.33,194.3,0.13285367]
[1760353677268,0.31221195,194.33,194.27,11.79263688]
[1760353677467,0.31221195,194.33,194.28,6.77840394]
[1760353677882,0.31221195,194.33,194.28,0.13307504]
[1760353678276,6.95754085,194.33,194.28,0.13307504]
[1760353678874,6.6453289,194.32,194.28,0.13307504]
[1760353679068,6.6453289,194.32,194.26,0.13307504]
[1760353679263,6.6453289,194.3,194.26,0.13307504]
[1760353679681,6.6453289,194.31,194.26,5.28072303]
[1760353679888,0.31221195,194.33,194.27,6.6453289]
[1760353680189,0.31221195,194.33,194.28,0.13299979]
[1760353680362,0.31221195,194.33,194.28,6.77832869]
[1760353680864,0.31221195,194.33,194.29,6.6453289]
[1760353681063,0.31221195,194.33,194.32,6.6453289]
[1760353681269,0.31221195,194.33,194.32,22.66795478]
[1760353681467,0.10288015,194.37,194.36,10.87647521]
[1760353681772,0.2,194.51,194.4,10.87647521]
[1760353681973,6.8453289,194.51,194.44,6.6453289]
[1760353682199,0.2,194.51,194.41,6.77726312]
[1760353682385,6.6453289,194.43,194.36,10.87647521]
[1760353682587,6.6453289,194.46,194.39,6.6453289]
[1760353682785,0.84264048,194.51,194.4,0.13217587]
[1760353682977,0.2,194.51,194.41,6.6453289]
[1760353683173,0.84264048,194.51,194.42,0.13204358]
[1760353683500,0.2,194.51,194.45,6.6453289]
[1760353683672,0.2,194.51,194.46,0.13189778]
[1760353683998,0.2,194.51,194.43,0.13189778]
[1760353684371,0.9,194.51,194.43,0.13189778]
[1760353684593,0.9,194.48,194.41,0.13197746]
[1760353684768,6.6453289,194.44,194.39,0.1321319]
[1760353684966,6.6453289,194.42,194.39,0.1321319]
[1760353685197,6.6453289,194.4,194.39,0.1321319]
[1760353685374,6.6453289,194.4,194.36,0.13230139]
[1760353685571,6.6453289,194.4,194.36,5.27735979]
[1760353685772,6.6453289,194.4,194.36,0.13230139]
[1760353686093,6.6453289,194.37,194.3,5.14668039]
[1760353686284,21.5,194.47,194.36,6.6453289]
[1760353686597,0.7,194.47,194.37,6.77758451]
[1760353686791,6.6453289,194.45,194.38,6.6453289]
[1760353686983,6.6453289,194.43,194.39,0.13225561]
[1760353687180,0.7,194.47,194.39,0.13225561]
[1760353687393,6.6453289,194.4,194.37,0.13225561]
[1760353687586,6.6453289,194.38,194.34,0.13243372]
[1760353687932,0.2,194.48,194.37,6.6453289]
[1760353688089,0.2,194.48,194.43,6.6453289]
[1760353688288,0.2,194.48,194.44,6.77729958]
[1760353688618,6.6453289,194.47,194.44,0.13197068]
[1760353688802,6.8453289,194.48,194.44,0.13197068]
[1760353688999,0.2,194.48,194.44,0.13197068]
[1760353689316,0.2,194.48,194.42,6.6453289]
[1760353689317,0.2,194.48,194.47,6.6453289]
[1760353689506,0.2,194.48,194.47,22.66398542]
[1760353689911,0.2,194.48,194.47,23.37398542]
[1760353690226,0.2,194.51,194.47,5.27401298]
[1760353690426,0.2,194.51,194.5,6.6453289]
[1760353690716,0.2,194.51,194.5,17.65343749]
[1760353690886,0.2,194.51,194.5,18.28343749]
[1760353691087,1e-08,194.51,194.5,18.28343749]
[1760353691304,1e-08,194.51,194.5,11.00810859]
[1760353691514,1e-08,194.51,194.5,23.42482566]
[1760353691920,1e-08,194.51,194.5,16.77949676]
[1760353692220,1e-08,194.51,194.5,23.42482566]
[1760353692411,0.2,194.59,194.55,10.87647521]
[1760353692612,0.2,194.59,194.56,0.13120736]
[1760353692806,0.2,194.59,194.56,6.77653626]
[1760353693005,7.3453289,194.58,194.56,0.13120736]
[1760353693319,7.3453289,194.58,194.52,11.00768257]
[1760353693521,6.6453289,194.56,194.52,0.13120736]
[1760353693703,0.7,194.58,194.52,0.13120736]
[1760353693903,6.6453289,194.53,194.44,12.85707377]
[1760353694091,6.6453289,194.5,194.45,5.2745096]
[1760353694914,0.2,194.59,194.54,10.87647521]
[1760353695118,0.2,194.59,194.58,6.6453289]
[1760353695294,0.2,194.59,194.57,6.6453289]
[1760353695494,0.2,194.59,194.54,10.87647521]
[1760353695495,0.2,194.59,194.58,0.13113459]
[1760353695817,0.9,194.59,194.55,0.13113459]
[1760353696121,7.3453289,194.58,194.55,0.13113459]
[1760353696333,6.73979175,194.56,194.52,0.13124376]
[1760353696536,6.6453289,194.53,194.48,0.1314123]
[1760353696826,6.6453289,194.49,194.45,5.14264274]
[1760353697025,6.6453289,194.48,194.46,0.13188164]
[1760353697211,6.6453289,194.48,194.44,5.14283753]
[1760353697406,6.6453289,194.48,194.45,0.13194778]
[1760353697612,0.7,194.47,194.38,5.14456219]
[1760353697809,6.6453289,194.48,194.39,12.99273654]
[1760353698032,6.6453289,194.48,194.42,6.6453289]
[1760353698237,6.6453289,194.48,194.43,0.13200713]
[1760353698404,0.7,194.51,194.45,17.52180411]
[1760353698732,6.6453289,194.5,194.46,0.13180877]
[1760353698931,6.6453289,194.48,194.46,0.13180877]
[1760353699127,6.6453289,194.47,194.43,0.13187489]
[1760353699502,6.6453289,194.44,194.43,0.13187489]
[1760353699719,0.7,194.46,194.38,5.27657323]
[1760353699927,6.6453289,194.43,194.38,5.27657323]
[1760353700229,6.6453289,194.41,194.38,0.13212332]
[1760353700403,6.6453289,194.39,194.36,0.13236755]
[1760353700608,6.6453289,194.37,194.29,0.13249991]
[1760353700803,6.6453289,194.34,194.31,10.87647521]
[1760353701031,6.6453289,194.34,194.31,0.13284446]
[1760353701215,6.6453289,194.37,194.31,0.13284446]
[1760353701423,6.6453289,194.4,194.35,5.14535631]
[1760353701623,6.6453289,194.41,194.36,0.13249986]
[1760353701925,0.7,194.47,194.4,6.6453289]
[1760353702129,6.6453289,194.42,194.41,0.13210973]
[1760353702332,6.6453289,194.44,194.38,6.6453289]
[1760353702554,7.3453289,194.43,194.39,0.13228528]
[1760353703050,6.6453289,194.43,194.39,0.13228528]
[1760353703204,6.6453289,194.46,194.4,6.6453289]
[1760353703406,6.6453289,194.46,194.41,0.13213939]
[1760353703625,7.3453289,194.45,194.41,0.13213939]
[1760353703810,0.7,194.45,194.41,0.13213939]
[1760353704010,0.7,194.45,194.41,5.275897]
[1760353704208,0.7,194.44,194.41,0.13213939]
[1760353704419,0.7,194.44,194.42,0.13217587]
[1760353704623,7.3453289,194.43,194.37,5.27698571]
[1760353704810,6.6453289,194.42,194.37,5.27698571]
[1760353705006,6.6453289,194.42,194.37,0.13217587]
[1760353705210,6.6453289,194.39,194.33,6.6453289]
[1760353705416,6.6453289,194.39,194.34,0.13261617]
[1760353705616,0.7,194.38,194.34,0.13261617]
[1760353705819,6.6453289,194.39,194.34,5.27814427]
[1760353706031,7.3453289,194.38,194.34,0.13261617]
[1760353706332,6.6453289,194.39,194.32,5.27874965]
[1760353706538,0.7,194.37,194.32,11.92407855]
[1760353706841,6.6453289,194.38,194.32,11.92407855]
[1760353707215,6.6453289,194.39,194.33,6.6453289]
[1760353707415,9.85167677,194.39,194.34,0.13261619]
[1760353707616,0.7,194.38,194.34,0.13261619]
[1760353708131,0.68,194.42,194.37,9.85167677]
[1760353708331,0.68,194.41,194.38,0.13236751]
[1760353708533,10.53167677,194.46,194.4,9.85167677]
[1760353708737,9.85167677,194.44,194.39,9.85167677]
[1760353709043,9.85167677,194.44,194.4,0.13223521]
[1760353709217,0.68,194.43,194.4,0.13223521]
[1760353709612,0.68,194.43,194.36,0.13223521]
[1760353709613,0.68,194.42,194.36,0.13223521]
[1760353709833,0.68,194.42,194.39,9.85167677]
[1760353710009,0.68,194.42,194.4,0.13232177]
[1760353710620,0.68,194.41,194.38,0.13232177]
[1760353710843,0.68,194.4,194.36,9.85167677]
[1760353711022,0.68,194.4,194.37,0.13239476]
[1760353711716,10.53167677,194.43,194.37,9.98407153]
[1760353711918,10.53167677,194.43,194.38,9.85167677]
[1760353712118,0.68,194.42,194.38,9.85167677]
[1760353712319,0.68,194.41,194.38,9.85167677]
[1760353712727,1.32277266,194.47,194.4,9.85167677]
[1760353712940,0.68,194.46,194.39,9.98403748]
[1760353713141,0.68,194.46,194.41,9.85167677]
[1760353713653,0.68,194.49,194.43,9.85167677]
[1760353713819,10.53167677,194.49,194.43,9.85167677]
[1760353714160,10.53167677,194.49,194.39,12.86059739]
[1760353714161,0.68,194.49,194.44,9.98361778]
[1760353714440,0.68,194.48,194.44,9.98361778]
[1760353714845,0.68,194.5,194.45,9.85167677]
[1760353715138,30.65167677,194.46,194.39,9.85167677]
[1760353715444,10.53167677,194.45,194.39,9.85167677]
[1760353715643,0.68,194.45,194.36,0.13183845]
[1760353715821,20.8,194.46,194.36,0.13183845]
[1760353715822,20.8,194.46,194.43,9.85167677]
[1760353716139,0.68,194.45,194.41,9.85167677]
[1760353716323,0.10567254,194.44,194.42,9.85167677]
[1760353716522,0.68,194.43,194.38,0.13208433]
[1760353716731,0.10567254,194.44,194.41,9.85167677]
[1760353716924,0.10567254,194.44,194.42,9.98386621]
[1760353717141,0.10567254,194.44,194.43,9.85167677]
[1760353717448,0.10567254,194.44,194.38,10.87647521]
[1760353717449,0.10567254,194.44,194.39,0.13218944]
[1760353717651,0.10567254,194.44,194.43,9.85167677]
[1760353717959,0.10567254,194.44,194.4,5.14399212]
[1760353718163,0.78567254,194.44,194.41,9.9838891]
[1760353718366,10.63734931,194.44,194.38,9.98388909]
[1760353718558,10.63734931,194.44,194.36,0.1322785]
[1760353718559,9.85167677,194.43,194.36,0.1322785]
[1760353718753,10.49461473,194.42,194.33,5.14588586]
[1760353718954,10.53167677,194.41,194.35,9.85167677]
[1760353719262,10.53167677,194.41,194.34,0.13252712]
[1760353719443,9.85167677,194.4,194.34,9.98420389]
[1760353719642,11.17464781,194.41,194.35,9.85167677]
[1760353719940,10.53167677,194.41,194.36,9.85167677]
[1760353720141,0.68,194.4,194.36,9.85167677]
[1760353720341,0.68,194.39,194.36,9.85167677]
[1760353720548,0.68,194.38,194.33,5.27832385]
[1760353720750,1.32293796,194.42,194.37,9.85167677]
[1760353720948,0.68,194.42,194.39,9.85167677]
[1760353721161,0.10567254,194.44,194.4,9.98397133]
[1760353721367,0.68,194.43,194.33,18.14276455]
[1760353721540,9.85167677,194.4,194.31,0.13249066]
[1760353721748,9.85167677,194.33,194.28,5.14718574]
[1760353721960,9.85167677,194.31,194.26,9.85167677]
[1760353722275,0.68,194.3,194.26,9.85167677]
[1760353722453,0.68,194.3,194.29,9.85167677]
[1760353722652,0.68,194.33,194.29,9.85167677]
[1760353722867,0.68,194.32,194.24,0.13312996]
[1760353723067,0.68,194.32,194.29,9.85167677]
[1760353723374,0.68,194.35,194.31,9.85167677]
[1760353723546,1.32303719,194.39,194.34,9.85167677]
[1760353723745,0.68,194.38,194.36,9.85167677]
[1760353723949,0.68,194.37,194.34,9.85167677]
[1760353724151,0.68,194.36,194.29,0.13266636]
[1760353724361,0.68,194.36,194.33,9.85167677]
[1760353724572,0.68,194.35,194.32,9.85167677]
[1760353724769,0.68,194.34,194.32,9.85167677]
[1760353724969,0.68,194.34,194.31,9.85167677]
[1760353725177,21.48,194.33,194.27,9.85167677]
[1760353725356,20.8,194.31,194.26,9.85167677]
[1760353725562,1.32333504,194.3,194.25,9.85167677]
[1760353725767,0.68,194.29,194.21,0.13320995]
[1760353725985,0.68,194.29,194.24,9.85167677]
[1760353726185,1.32330194,194.31,194.21,0.13320995]
[1760353726390,0.68,194.28,194.25,9.85167677]
[1760353726569,0.64330194,194.31,194.26,9.85167677]
[1760353726775,0.68,194.32,194.3,9.85167677]
[1760353727185,0.68,194.32,194.29,9.85167677]
[1760353727362,10.49481321,194.36,194.3,9.85167677]
[1760353727563,30.65167677,194.34,194.27,9.85167677]
[1760353727895,0.68,194.33,194.28,9.85167677]
[1760353728397,0.68,194.32,194.24,0.13299748]
[1760353728564,9.85167677,194.31,194.25,9.85167677]
[1760353728764,9.85167677,194.27,194.2,0.133146]
[1760353728971,9.85167677,194.24,194.19,0.1]
[1760353729208,10.53167677,194.24,194.19,0.1]
[1760353729380,9.85167677,194.23,194.19,0.1]
[1760353729695,0.68,194.25,194.19,0.1]
[1760353729896,10.53167677,194.25,194.19,9.95167677]
[1760353730205,30.65167677,194.31,194.24,9.85167677]
[1760353730489,9.85167677,194.29,194.2,0.13316881]
[1760353730704,9.85167677,194.25,194.19,0.1]
[1760353730865,9.85167677,194.24,194.19,9.95167677]
[1760353731197,0.68,194.26,194.19,0.1]
[1760353731198,10.53167677,194.23,194.19,0.1]
[1760353731389,10.53167677,194.22,194.19,0.1]
[1760353731572,10.53167677,194.21,194.19,0.1]
[1760353731892,10.53167677,194.2,194.19,0.1]
[1760353732074,11.17534309,194.2,194.17,0.1]
[1760353732274,0.68,194.19,194.17,0.1]
[1760353732459,21.44366632,194.2,194.17,0.1]
[1760353732658,10.53167677,194.19,194.17,0.1]
[1760353732858,9.85167677,194.21,194.17,0.1]
[1760353733278,10.53167677,194.21,194.17,0.1]
[1760353733478,9.85167677,194.19,194.17,0.1]
[1760353733678,9.85167677,194.2,194.17,0.1]
[1760353733883,0.64363318,194.21,194.17,0.1]
[1760353733884,9.85167677,194.18,194.17,0.1]
[1760353734376,0.68,194.18,194.17,0.1]
[1760353734574,20.8,194.2,194.17,0.1]
[1760353734882,30.65167677,194.22,194.17,0.1]
[1760353735071,0.68,194.25,194.19,9.85167677]
[1760353735395,0.68,194.25,194.17,5.93011367]
[1760353735396,0.68,194.25,194.2,9.98520659]
[1760353735570,0.64336816,194.29,194.22,9.85167677]
[1760353735768,9.85167677,194.31,194.25,9.85167677]
[1760353735984,9.85167677,194.3,194.21,10.87647521]
[1760353736189,0.68,194.31,194.22,0.13328761]
[1760353736371,0.11019153,194.26,194.25,9.85167677]
[1760353737188,0.11019153,194.26,194.25,9.98498495]
[1760353737407,0.11019153,194.26,194.25,0.13330818]
[1760353737688,0.11019153,194.26,194.24,9.85167677]
[1760353737879,0.11019153,194.26,194.23,9.85167677]
[1760353738065,0.11019153,194.26,194.24,9.98505121]
[1760353738268,0.11019153,194.26,194.25,9.85167677]
[1760353739293,0.11019153,194.26,194.25,9.98496436]
[1760353739877,0.10615821,194.28,194.26,10.87647521]
[1760353740073,0.10624126,194.3,194.28,10.87647521]
[1760353740395,0.7,194.43,194.3,10.87647521]
[1760353740567,9.85167677,194.41,194.36,9.85167677]
[1760353740766,0.7,194.4,194.36,9.85167677]
[1760353740975,0.7,194.39,194.31,11.00906854]
[1760353741295,10.55167677,194.38,194.31,0.13259333]
[1760353741490,9.85167677,194.36,194.3,9.85167677]
[1760353741694,9.85167677,194.34,194.28,9.85167677]
[1760353741898,10.55167677,194.33,194.28,9.85167677]
[1760353742091,0.7,194.33,194.28,9.85167677]
[1760353742291,1.34310335,194.37,194.3,9.85167677]
[1760353742488,0.7,194.4,194.35,9.85167677]
[1760353742687,10.55167677,194.39,194.31,0.13277145]
[1760353742885,9.85167677,194.37,194.31,0.13277145]
[1760353743090,9.85167677,194.35,194.28,0.13277145]
[1760353743284,10.55167677,194.34,194.28,9.98444822]
[1760353743484,9.85167677,194.33,194.28,9.85167677]
[1760353743795,0.7,194.33,194.28,9.85167677]
[1760353744101,0.7,194.37,194.31,9.85167677]
[1760353744282,0.7,194.37,194.32,9.9844117]
[1760353744484,10.55167677,194.36,194.3,9.85167677]
[1760353744792,0.7,194.36,194.29,0.13272574]
[1760353745108,0.64300411,194.4,194.32,9.85167677]
[1760353745290,10.55167677,194.42,194.36,9.85167677]
[1760353745679,10.55167677,194.47,194.41,9.85167677]
[1760353745879,0.7,194.47,194.42,9.85167677]
[1760353746102,0.7,194.47,194.43,9.85167677]
[1760353746498,0.7,194.46,194.43,9.85167677]
[1760353746709,0.7,194.45,194.42,9.85167677]
[1760353747014,0.7,194.44,194.4,9.85167677]
[1760353747315,10.55167677,194.48,194.42,9.85167677]
[1760353747617,0.7,194.48,194.42,9.85167677]
[1760353747790,0.7,194.48,194.43,9.85167677]
[1760353748211,0.7,194.48,194.44,9.85167677]
[1760353748516,0.7,194.52,194.47,9.85167677]
[1760353748706,0.7,194.51,194.47,9.85167677]
[1760353748905,0.7,194.55,194.49,9.85167677]
[1760353749237,0.7,194.55,194.51,9.85167677]
[1760353749528,9.85167677,194.57,194.51,9.85167677]
[1760353749704,0.2,194.59,194.45,0.22154442]
[1760353749705,10.55167677,194.58,194.52,9.98308904]
[1760353749900,0.2,194.59,194.54,14.9920078]
[1760353750127,0.2,194.59,194.54,9.85167677]
[1760353750527,0.2,194.59,194.55,9.85167677]
[1760353750730,9.85167677,194.57,194.49,0.1312505]
[1760353751031,9.85167677,194.54,194.47,0.13149188]
[1760353751333,9.85167677,194.51,194.45,9.85167677]
[1760353751516,9.85167677,194.49,194.42,0.13186978]
[1760353751716,9.85167677,194.49,194.43,9.85167677]
[1760353752031,0.64250835,194.55,194.46,9.85167677]
[1760353752233,1.34250835,194.55,194.47,9.98333045]
[1760353752432,9.85167677,194.54,194.48,9.85167677]
[1760353752636,9.85167677,194.54,194.47,0.13165368]
[1760353752937,0.7,194.55,194.47,9.98333045]
[1760353753122,20.8,194.56,194.51,9.85167677]
[1760353753524,0.7,194.56,194.51,9.85167677]
[1760353753836,0.7,194.55,194.5,9.85167677]
[1760353754038,0.7,194.55,194.5,14.99299296]
[1760353754418,9.85167677,194.57,194.51,9.98318477]
[1760353754919,0.7,194.58,194.53,9.85167677]
[1760353755235,0.7,194.58,194.52,9.85167677]
[1760353755236,10.55167677,194.58,194.52,9.85167677]
[1760353755635,0.7,194.58,194.53,9.85167677]
[1760353755828,10.55167677,194.58,194.52,9.85167677]
[1760353756011,9.85167677,194.55,194.51,0.131508]
[1760353756215,10.55167677,194.55,194.47,12.98666229]
[1760353756512,0.10858234,194.52,194.48,5.1419169]
[1760353756725,0.10858234,194.52,194.49,9.98336011]
[1760353757136,0.10858234,194.52,194.5,9.85167677]
[1760353757340,0.10858234,194.52,194.51,0.13159696]
[1760353757523,0.10858234,194.52,194.51,9.98327373]
[1760353757838,0.09889814,194.53,194.51,20.94974894]
[1760353758041,0.00889814,194.53,194.52,25.95901153]
[1760353759041,0.10796561,194.56,194.52,25.95901153]
[1760353759042,1e-08,194.56,194.55,10.87647521]
[1760353759262,1e-08,194.56,194.55,20.85945504]
[1760353759619,0.0945911,194.58,194.57,20.8]
[1760353759818,0.0945911,194.58,194.57,30.78284774]
[1760353760120,0.0945911,194.58,194.57,46.79886141]
[1760353760121,1e-08,194.58,194.57,46.79886141]
[1760353760331,0.2,194.68,194.61,10.87647521]
[1760353760651,0.2,194.68,194.62,0.13072232]
[1760353760857,0.2,194.68,194.62,9.98239909]
[1760353761141,0.2,194.68,194.62,9.85167677]
[1760353761341,10.05167677,194.68,194.62,9.85167677]
[1760353761717,9.85167677,194.65,194.59,9.85167677]
[1760353761920,9.85167677,194.66,194.6,9.85167677]
[1760353762224,0.2,194.68,194.62,9.85167677]
[1760353762525,0.2,194.68,194.64,9.85167677]
[1760353762739,0.2,194.68,194.66,9.85167677]
[1760353762922,0.2,194.68,194.61,10.87647521]
[1760353762923,0.2,194.68,194.67,0.13054059]
[1760353763135,0.2,194.68,194.62,0.13054059]
[1760353763342,0.2,194.68,194.63,9.85167677]
[1760353763556,0.2,194.68,194.64,0.13066303]
[1760353763953,10.05167677,194.68,194.64,0.13066303]
[1760353764257,10.05167677,194.68,194.64,5.26832259]
[1760353764948,0.2,194.68,194.64,15.11999936]
[1760353765160,0.2,194.68,194.66,9.85167677]
[1760353765347,0.2,194.68,194.67,9.98221736]
[1760353766065,10.05167677,194.68,194.61,0.13054059]
[1760353766367,10.05167677,194.68,194.6,20.72815198]
[1760353766368,9.85167677,194.66,194.6,20.72815198]
[1760353766653,0.2,194.68,194.61,0.13083809]
[1760353766862,9.85167677,194.66,194.61,9.98251486]
[1760353767048,9.85167677,194.66,194.61,0.13083809]
[1760353767653,9.85167677,194.66,194.61,9.98251486]
[1760353768162,1.96666964,194.68,194.62,5.13821806]
[1760353768369,1.96666964,194.68,194.64,9.85167677]
[1760353768666,1.96666964,194.68,194.65,9.98229004]
[1760353768864,1.96666964,194.68,194.65,0.13061327]
[1760353769770,1.96666964,194.68,194.64,6.72335701]
[1760353770156,1.96666964,194.68,194.65,5.13742614]
[1760353770465,6.59274374,194.66,194.6,16.01522135]
[1760353770705,6.59274374,194.63,194.57,0.13083141]
[1760353770864,6.59274374,194.64,194.58,6.59274374]
[1760353771063,6.59274374,194.64,194.59,0.13096343]
[1760353771793,2.60874894,194.68,194.59,0.13096343]
[1760353771977,6.59274374,194.64,194.59,0.13096343]
[1760353772172,2.60874894,194.68,194.59,5.13901022]
[1760353772565,2.60874894,194.68,194.6,0.13079504]
[1760353772765,1.96666964,194.68,194.61,6.59274374]
[1760353772991,1.96666964,194.68,194.62,0.13072232]
[1760353773197,6.59274374,194.67,194.62,0.13072232]
[1760353773393,1.96666964,194.68,194.62,0.13072232]
[1760353773593,6.59274374,194.67,194.62,0.13072232]
[1760353773909,1.96666964,194.68,194.62,0.13072232]
[1760353774091,1.96666964,194.68,194.62,10.87647521]
[1760353774399,1.96666964,194.68,194.65,6.59274374]
[1760353774597,1.96666964,194.68,194.66,6.72332067]
[1760353774806,1.96666964,194.68,194.67,6.59274374]
[1760353774973,1.96666964,194.68,194.66,6.72332067]
[1760353775292,1.96666964,194.68,194.66,0.13057693]
[1760353775892,1.96666964,194.68,194.66,6.72332067]
[1760353776209,1.96666964,194.68,194.66,0.13057693]
[1760353776376,2.0664029,194.68,194.67,5.13689834]
[1760353777073,8.65914664,194.68,194.61,12.84584661]
[1760353777286,6.59274374,194.67,194.62,5.26894038]
[1760353777492,6.59274374,194.67,194.62,18.11448554]
[1760353777693,6.59274374,194.67,194.62,5.26894038]
[1760353778082,6.59274374,194.64,194.62,0.13072232]